[Event "6e festival d'échecs d'Allauch"]
[Site "Allauch, France"]
[Date "2024.08.27"]
[Round "2.7"]
[White "Siguret, William"]
[Black "Camus, Evan"]
[Result "1-0"]
[TimeControl "1 h 30 min (+30s/coup)"]
[WhiteElo "1671"]
[BlackElo "1514"]

1. f4 {[%clk 01:30:52]} {[%emt 00:00:07]} d5 {[%clk 01:30:25]} {[%emt
00:00:37]} 2. Nf3 {[%clk 01:31:14]} {[%emt 00:00:07]} Nf6 {[%clk 01:28:40]}
{[%emt 00:02:14]} 3. e3 {[%clk 01:31:38]} {[%emt 00:00:06]} e6 {[%clk
01:25:25]} {[%emt 00:03:44]} 4. b3 {[%clk 01:31:25]} {[%emt 00:00:43]} Nc6
{[%clk 01:22:43]} {[%emt 00:03:12]} 5. Bb5 {[%clk 01:31:46]} {[%emt 00:00:09]}
Bd7 {[%clk 01:22:39]} {[%emt 00:00:33]} 6. Bb2 {[%clk 01:31:49]} {[%emt
00:00:27]} Bd6 {[%clk 01:20:08]} {[%emt 00:03:01]} 7. O-O {[%clk 01:31:17]}
{[%emt 00:01:02]} a6 {[%clk 01:19:12]} {[%emt 00:01:27]} 8. Be2 {[%clk
01:31:31]} {[%emt 00:00:15]} Qe7 {[%clk 01:17:10]} {[%emt 00:02:31]} 9. a4
{[%clk 01:28:46]} {[%emt 00:03:15]} O-O-O {[%clk 01:14:01]} {[%emt 00:03:39]}
10. c3 {[%clk 01:28:49]} {[%emt 00:00:27]} e5 {[%clk 01:13:25]} {[%emt
00:01:07]} 11. fxe5 {[%clk 01:24:47]} {[%emt 00:04:32]} Nxe5 {[%clk 01:12:40]}
{[%emt 00:00:50]} 12. Ba3 {[%clk 01:19:36]} {[%emt 00:06:05]} Bg4 {[%clk
01:09:28]} {[%emt 00:03:42]} 13. Nxe5 {[%clk 01:15:42]} {[%emt 00:04:25]} Bxe2
{[%clk 01:04:07]} {[%emt 00:05:51]} 14. Bxd6 {[%clk 01:11:28]} {[%emt
00:04:44]} Rxd6 {[%clk 01:02:16]} {[%emt 00:02:21]} 15. Qxe2 {[%clk 01:10:13]}
{[%emt 00:01:44]} Qxe5 {[%clk 01:00:19]} {[%emt 00:02:27]} 16. Qf3 {[%clk
01:05:00]} {[%emt 00:05:42]} Rf8 {[%clk 00:57:01]} {[%emt 00:03:48]} 17. Na3
{[%clk 01:03:57]} {[%emt 00:01:34]} Ne4 {[%clk 00:53:19]} {[%emt 00:04:12]} 18.
d4 {[%clk 00:50:31]} {[%emt 00:13:56]} Qe6 {[%clk 00:50:30]} {[%emt 00:03:18]}
19. Nb1 {[%clk 00:31:56]} {[%emt 00:19:05]} f5 {[%clk 00:42:16]} {[%emt
00:08:45]} 20. Ra2 {[%clk 00:30:12]} {[%emt 00:02:15]} g5 {[%clk 00:39:29]}
{[%emt 00:03:16]} 21. Rc2 {[%clk 00:24:02]} {[%emt 00:06:40]} g4 {[%clk
00:34:22]} {[%emt 00:05:37]} 22. Qf4 {[%clk 00:23:29]} {[%emt 00:01:02]} b5
{[%clk 00:30:02]} {[%emt 00:04:50]} 23. axb5 {[%clk 00:21:40]} {[%emt
00:02:20]} axb5 {[%clk 00:29:34]} {[%emt 00:00:58]} 24. Nd2 {[%clk 00:19:43]}
{[%emt 00:02:27]} Nxd2 {[%clk 00:20:04]} {[%emt 00:10:00]} 25. Rxd2 {[%clk
00:20:08]} {[%emt 00:00:05]} Ra6 {[%clk 00:19:41]} {[%emt 00:00:53]} 26. c4
{[%clk 00:17:56]} {[%emt 00:02:42]} bxc4 {[%clk 00:19:38]} {[%emt 00:00:33]} 27.
bxc4 {[%clk 00:18:08]} {[%emt 00:00:17]} Ra4 {[%clk 00:18:28]} {[%emt
00:01:40]} 28. cxd5 {[%clk 00:17:54]} {[%emt 00:00:44]} Qxd5 {[%clk 00:18:50]}
{[%emt 00:00:08]} 29. Rc2 {[%clk 00:17:49]} {[%emt 00:00:35]} Rf7 {[%clk
00:17:35]} {[%emt 00:01:46]} 30. Rfc1 {[%clk 00:17:27]} {[%emt 00:00:52]} Ra7
{[%clk 00:16:28]} {[%emt 00:01:37]} 31. Rc5 {[%clk 00:15:44]} {[%emt 00:02:12]}
Qb3 {[%clk 00:16:02]} {[%emt 00:00:55]} 32. R5c3 {[%clk 00:12:14]} {[%emt
00:04:00]} Qb2 {[%clk 00:15:34]} {[%emt 00:00:59]} 33. R3c2 {[%clk 00:12:34]}
{[%emt 00:00:10]} Qb4 {[%clk 00:15:12]} {[%emt 00:00:52]} 34. Rc4 {[%clk
00:12:30]} {[%emt 00:00:34]} Qe7 {[%clk 00:14:47]} {[%emt 00:00:55]} 35. Rc5
{[%clk 00:12:16]} {[%emt 00:00:44]} Qe6 {[%clk 00:14:06]} {[%emt 00:01:11]} 36.
d5 {[%clk 00:11:29]} {[%emt 00:01:16]} Qb6 {[%clk 00:13:00]} {[%emt 00:01:36]}
37. Qe5 {[%clk 00:10:28]} {[%emt 00:01:31]} Rd7 {[%clk 00:10:55]} {[%emt
00:02:36]} 38. Qxf5 {[%clk 00:10:00]} {[%emt 00:00:58]} Qd6 {[%clk 00:09:17]}
{[%emt 00:02:08]} 39. Qxg4 {[%clk 00:09:30]} {[%emt 00:01:00]} Ra1 {[%clk
00:08:48]} {[%emt 00:00:59]} 40. Qg8+ {[%clk 00:09:03]} {[%emt 00:00:57]} Rd8
{[%clk 00:08:42]} {[%emt 00:00:36]} 41. Qe6+ {[%clk 00:07:50]} {[%emt
00:01:42]} Qxe6 {[%clk 00:07:15]} {[%emt 00:01:57]} 42. Rxc7+ {[%clk 00:07:53]}
{[%emt 00:00:27]} Kb8 {[%clk 00:07:26]} {[%emt 00:00:18]} 43. dxe6 {[%clk
00:08:07]} {[%emt 00:00:16]} Rd1+ {[%clk 00:07:28]} {[%emt 00:00:29]} 44. Kf2
{[%clk 00:05:32]} {[%emt 00:03:05]} Rdxc1 {[%clk 00:06:37]} {[%emt 00:01:21]}
45. e7 {[%clk 00:04:37]} {[%emt 00:01:25]} Kxc7 {[%clk 00:06:33]} {[%emt
00:00:34]} 46. e8=Q {[%clk 00:04:55]} {[%emt 00:00:12]} Ra2+ {[%clk 00:06:46]}
{[%emt 00:00:16]} 47. Kf3 {[%clk 00:05:07]} {[%emt 00:00:20]} Rf1+ {[%clk
00:06:57]} {[%emt 00:00:19]} 48. Kg3 {[%clk 00:05:25]} {[%emt 00:00:12]} Rff2
{[%clk 00:06:55]} {[%emt 00:00:48]} 49. Qe5+ {[%clk 00:05:38]} {[%emt
00:00:17]} Kb6 {[%clk 00:07:11]} {[%emt 00:00:15]} 50. Qd4+ {[%clk 00:05:38]}
{[%emt 00:00:17]} Kc6 {[%clk 00:07:25]} {[%emt 00:00:25]} 51. Qe4+ {[%clk
00:05:57]} {[%emt 00:00:14]} Kc5 {[%clk 00:07:39]} {[%emt 00:00:16]} 52. h4
{[%clk 00:05:21]} {[%emt 00:01:06]} Kd6 {[%clk 00:07:53]} {[%emt 00:00:15]} 53.
h5 {[%clk 00:05:42]} {[%emt 00:00:10]} Rf6 {[%clk 00:07:49]} {[%emt 00:00:28]}
54. Qd4+ {[%clk 00:05:41]} {[%emt 00:00:35]} Ke7 {[%clk 00:08:03]} {[%emt
00:00:18]} 55. Qb4+ {[%clk 00:05:38]} {[%emt 00:00:31]} Kd8 {[%clk 00:08:13]}
{[%emt 00:00:21]} 56. Qb8+ {[%clk 00:04:57]} {[%emt 00:01:12]} Ke7 {[%clk
00:08:34]} {[%emt 00:00:09]} 57. Qc7+ {[%clk 00:05:06]} {[%emt 00:00:21]} Kf8
{[%clk 00:08:48]} {[%emt 00:00:15]} 58. Qxh7 {[%clk 00:04:47]} {[%emt
00:00:50]} Raa6 {[%clk 00:09:00]} {[%emt 00:00:18]} 59. Kh4 {[%clk 00:04:39]}
{[%emt 00:00:37]} Ra4+ {[%clk 00:09:17]} {[%emt 00:00:13]} 60. g4 {[%clk
00:04:56]} {[%emt 00:00:14]} Rf7 {[%clk 00:09:33]} {[%emt 00:00:14]} 61. Qh8+
{[%clk 00:05:12]} {[%emt 00:00:14]} Ke7 {[%clk 00:09:51]} {[%emt 00:00:12]} 62.
Qe5+ {[%clk 00:05:27]} {[%emt 00:00:15]} Kf8 {[%clk 00:09:54]} {[%emt
00:00:27]} 63. h6 {[%clk 00:05:32]} {[%emt 00:00:25]} Re7 {[%clk 00:10:00]}
{[%emt 00:00:24]} 64. Qh8+ {[%clk 00:05:03]} {[%emt 00:00:58]} Kf7 {[%clk
00:10:10]} {[%emt 00:00:20]} 65. Qg7+ {[%clk 00:04:51]} {[%emt 00:00:40]} Ke6
{[%clk 00:10:26]} {[%emt 00:00:16]} 66. Qg6+ {[%clk 00:04:53]} {[%emt
00:00:28]} Ke5 {[%clk 00:10:33]} {[%emt 00:00:25]} 67. h7 {[%clk 00:04:26]}
{[%emt 00:00:56]} Ra8 {[%clk 00:10:25]} {[%emt 00:00:37]} 68. g5 {[%clk
00:03:57]} {[%emt 00:00:59]} Ra4+ {[%clk 00:10:29]} {[%emt 00:00:27]} 69. Kh5
{[%clk 00:04:11]} {[%emt 00:00:16]} Kd5 {[%clk 00:10:42]} {[%emt 00:00:16]} 70.
h8=Q {[%clk 00:03:59]} {[%emt 00:00:42]} Rxe3 {[%clk 00:10:53]} {[%emt
00:00:20]} 71. Qd8+ {[%clk 00:04:00]} {[%emt 00:00:29]} Kc4 {[%clk 00:11:06]}
{[%emt 00:00:18]} 72. Qc6+ {[%clk 00:04:09]} {[%emt 00:00:20]} Kb3 {[%clk
00:11:20]} {[%emt 00:00:16]} 73. Qxa4+ {[%clk 00:04:21]} {[%emt 00:00:19]} Kxa4
{[%clk 00:11:40]} {[%emt 00:00:11]} 74. Qd4+ {[%clk 00:04:45]} {[%emt
00:00:05]} Kb3 {[%clk 00:12:06]} {[%emt 00:00:04]} 75. Qxe3+ {[%clk 00:05:10]}
{[%emt 00:00:05]} Kc2 {[%clk 00:12:13]} {[%emt 00:00:23]} 76. g6 {[%clk
00:05:28]} {[%emt 00:00:12]} Kd1 {[%clk 00:12:36]} {[%emt 00:00:07]} 77. g7
{[%clk 00:05:44]} {[%emt 00:00:13]} Kc2 {[%clk 00:13:00]} {[%emt 00:00:07]} 78.
g8=Q {[%clk 00:04:39]} {[%emt 00:00:16]} Kd1 {[%clk 00:13:26]} {[%emt
00:01:23]} 79. Qd5+ {[%clk 00:04:42]} {[%emt 00:00:27]} Kc2 {[%clk 00:13:40]}
{[%emt 00:00:16]} 80. Qdb3# {[%emt 00:01:26]} 1-0

[Event "6e festival d'échecs d'Allauch"]
[Site "Allauch, France"]
[Date "2024.08.27"]
[Round "2.8"]
[White "Bosseau Cassan, Romeo"]
[Black "Madi, Chahinez"]
[Result "0-1"]
[TimeControl "1 h 30 min (+30s/coup)"]
[WhiteElo "1514"]
[BlackElo "1668"]

1. e4 {[%clk 01:30:58]} {[%emt 00:07:26]} c5 {[%clk 01:30:54]} {[%emt
00:00:08]} 2. Nf3 {[%clk 01:31:23]} {[%emt 00:00:03]} d6 {[%clk 01:31:20]}
{[%emt 00:00:04]} 3. d4 {[%clk 01:31:40]} {[%emt 00:00:15]} cxd4 {[%clk
01:31:44]} {[%emt 00:00:05]} 4. Nxd4 {[%clk 01:31:57]} {[%emt 00:00:14]} Nf6
{[%clk 01:32:04]} {[%emt 00:00:11]} 5. Nc3 {[%clk 01:31:58]} {[%emt 00:00:27]}
a6 {[%clk 01:32:27]} {[%emt 00:00:07]} 6. Bc4 {[%clk 01:30:56]} {[%emt
00:01:32]} e6 {[%clk 01:32:01]} {[%emt 00:00:56]} 7. Nf3 {[%clk 01:27:11]}
{[%emt 00:04:14]} b5 {[%clk 01:27:47]} {[%emt 00:04:44]} 8. Bb3 {[%clk
01:24:01]} {[%emt 00:03:41]} Bb7 {[%clk 01:27:14]} {[%emt 00:01:03]} 9. Bg5
{[%clk 01:18:06]} {[%emt 00:06:25]} Be7 {[%clk 01:24:24]} {[%emt 00:03:19]} 10.
Bxf6 {[%clk 01:08:50]} {[%emt 00:09:47]} Bxf6 {[%clk 01:24:35]} {[%emt
00:00:19]} 11. Nd2 {[%clk 01:04:11]} {[%emt 00:05:09]} O-O {[%clk 01:18:08]}
{[%emt 00:06:57]} 12. O-O {[%clk 01:02:14]} {[%emt 00:02:27]} b4 {[%clk
01:17:23]} {[%emt 00:01:14]} 13. Na4 {[%clk 01:01:10]} {[%emt 00:01:35]} Bc6
{[%clk 01:17:06]} {[%emt 00:00:46]} 14. Rb1 {[%clk 00:59:22]} {[%emt 00:02:18]}
Qa5 {[%clk 01:14:34]} {[%emt 00:03:00]} 15. Nc4 {[%clk 00:57:54]} {[%emt
00:02:01]} Qg5 {[%clk 01:09:49]} {[%emt 00:05:10]} 16. Qf3 {[%clk 00:49:46]}
{[%emt 00:08:42]} Be5 {[%clk 01:00:42]} {[%emt 00:09:38]} 17. Rfe1 {[%clk
00:44:20]} {[%emt 00:05:56]} Nd7 {[%clk 00:52:24]} {[%emt 00:08:46]} 18. c3
{[%clk 00:42:01]} {[%emt 00:02:52]} f5 {[%clk 00:46:11]} {[%emt 00:06:43]} 19.
Nxe5 {[%clk 00:26:55]} {[%emt 00:15:36]} Nxe5 {[%clk 00:44:28]} {[%emt
00:02:14]} 20. Qh3 {[%clk 00:21:43]} {[%emt 00:05:42]} Bxe4 {[%clk 00:41:38]}
{[%emt 00:03:19]} 21. Bxe6+ {[%clk 00:20:44]} {[%emt 00:01:29]} Kh8 {[%clk
00:41:48]} {[%emt 00:00:20]} 22. Rxe4 {[%clk 00:19:44]} {[%emt 00:01:31]} fxe4
{[%clk 00:41:46]} {[%emt 00:00:31]} 23. Bd5 {[%clk 00:19:11]} {[%emt 00:01:04]}
Nf3+ {[%emt 00:01:44]} 24. Kf1 {[%clk 00:18:39]} {[%emt 00:00:15]} Nd2+ {[%clk
00:40:50]} {[%emt 00:00:59]} 25. Kg1 {[%clk 00:18:22]} {[%emt 00:00:48]} Nxb1
{[%clk 00:40:46]} {[%emt 00:00:33]} 26. Bxe4 {[%clk 00:18:17]} {[%emt
00:00:35]} Qc1# {[%clk 00:41:07]} {[%emt 00:00:09]} 0-1

[Event "6e festival d'échecs d'Allauch"]
[Site "Allauch, France"]
[Date "2024.08.27"]
[Round "3.1"]
[White "Garrido, Mihai"]
[Black "Degraeve, Jean-Marc"]
[Result "0-1"]
[TimeControl "1 h 30 min (+30s/coup)"]
[WhiteElo "2014"]
[BlackElo "2487"]

1. e4 {[%clk 01:30:58]} {[%emt 00:00:02]} c5 {[%clk 01:30:46]} {[%emt
00:00:14]} 2. Nf3 {[%clk 01:31:22]} {[%emt 00:00:06]} Nc6 {[%clk 01:31:11]}
{[%emt 00:00:05]} 3. Nc3 {[%clk 01:31:48]} {[%emt 00:00:05]} e5 {[%clk
01:30:11]} {[%emt 00:01:29]} 4. Bc4 {[%clk 01:32:12]} {[%emt 00:00:06]} d6
{[%clk 01:30:35]} {[%emt 00:00:06]} 5. d3 {[%clk 01:32:28]} {[%emt 00:00:14]}
Be7 {[%clk 01:30:58]} {[%emt 00:00:07]} 6. O-O {[%clk 01:32:22]} {[%emt
00:00:36]} Nf6 {[%clk 01:31:15]} {[%emt 00:00:13]} 7. Nd5 {[%clk 01:32:41]}
{[%emt 00:00:12]} O-O {[%clk 01:28:54]} {[%emt 00:02:51]} 8. c3 {[%clk
01:32:56]} {[%emt 00:00:15]} Rb8 {[%clk 01:24:24]} {[%emt 00:05:00]} 9. a4
{[%clk 01:33:19]} {[%emt 00:00:07]} a6 {[%clk 01:24:42]} {[%emt 00:00:12]} 10.
Bd2 {[%clk 01:18:58]} {[%emt 00:14:50]} b5 {[%clk 01:23:42]} {[%emt 00:01:31]}
11. axb5 {[%clk 01:19:24]} {[%emt 00:00:05]} axb5 {[%clk 01:24:07]} {[%emt
00:00:04]} 12. Nxf6+ {[%clk 01:19:42]} {[%emt 00:00:12]} Bxf6 {[%clk 01:24:35]}
{[%emt 00:00:02]} 13. Bb3 {[%clk 01:11:51]} {[%emt 00:08:20]} Qc7 {[%clk
01:09:34]} {[%emt 00:15:31]} 14. Re1 {[%clk 01:08:02]} {[%emt 00:04:20]} Bb7
{[%clk 01:03:19]} {[%emt 00:06:44]} 15. Bd5 {[%clk 01:01:11]} {[%emt 00:07:20]}
Ne7 {[%clk 01:01:44]} {[%emt 00:02:05]} 16. Bxb7 {[%clk 01:01:35]} {[%emt
00:00:07]} Rxb7 {[%clk 01:02:10]} {[%emt 00:00:04]} 17. b4 {[%clk 00:55:39]}
{[%emt 00:06:26]} c4 {[%clk 00:56:34]} {[%emt 00:06:07]} 18. Be3 {[%clk
00:52:51]} {[%emt 00:03:18]} cxd3 {[%clk 00:56:57]} {[%emt 00:00:07]} 19. Qxd3
{[%clk 00:52:58]} {[%emt 00:00:23]} Rd8 {[%clk 00:56:17]} {[%emt 00:01:09]} 20.
Ra6 {[%clk 00:49:59]} {[%emt 00:03:29]} d5 {[%clk 00:51:06]} {[%emt 00:05:41]}
21. Bc5 {[%clk 00:44:25]} {[%emt 00:06:04]} dxe4 {[%clk 00:50:49]} {[%emt
00:00:47]} 22. Qxe4 {[%clk 00:44:41]} {[%emt 00:00:13]} Nd5 {[%clk 00:51:10]}
{[%emt 00:00:09]} 23. Bd4 {[%clk 00:36:17]} {[%emt 00:08:54]} Qc8 {[%clk
00:45:16]} {[%emt 00:06:25]} 24. Nxe5 {[%clk 00:28:10]} {[%emt 00:08:38]} Re7
{[%clk 00:39:05]} {[%emt 00:06:40]} 25. Rc6 {[%clk 00:27:36]} {[%emt 00:01:05]}
Qa8 {[%clk 00:38:43]} {[%emt 00:00:52]} 26. Rc5 {[%clk 00:27:21]} {[%emt
00:00:45]} Bxe5 {[%clk 00:38:51]} {[%emt 00:00:21]} 27. Bxe5 {[%clk 00:27:38]}
{[%emt 00:00:14]} f6 {[%clk 00:39:01]} {[%emt 00:00:19]} 28. Rd1 {[%clk
00:23:00]} {[%emt 00:05:08]} Rxe5 {[%clk 00:38:41]} {[%emt 00:00:51]} 29. Qd3
{[%clk 00:23:03]} {[%emt 00:00:27]} Ree8 {[%clk 00:37:06]} {[%emt 00:02:05]} 30.
Qf1 {[%clk 00:17:12]} {[%emt 00:06:21]} Nf4 {[%clk 00:36:30]} {[%emt 00:01:06]}
31. Rxd8 {[%clk 00:17:07]} {[%emt 00:00:35]} Rxd8 {[%clk 00:36:45]} {[%emt
00:00:15]} 32. g3 {[%clk 00:15:34]} {[%emt 00:02:03]} Nh3+ {[%clk 00:32:20]}
{[%emt 00:04:56]} 33. Qxh3 {[%clk 00:16:00]} {[%emt 00:00:04]} Rd1+ {[%clk
00:32:43]} {[%emt 00:00:07]} 34. Qf1 {[%clk 00:16:27]} {[%emt 00:00:02]} Qa1
{[%clk 00:32:44]} {[%emt 00:00:30]} 35. Qxd1 {[%clk 00:16:42]} {[%emt
00:00:15]} Qxd1+ {[%clk 00:33:06]} {[%emt 00:00:08]} 36. Kg2 {[%clk 00:17:10]}
{[%emt 00:00:02]} Qd3 {[%clk 00:33:11]} {[%emt 00:00:24]} 37. h4 {[%clk
00:17:34]} {[%emt 00:00:07]} h5 {[%clk 00:33:13]} {[%emt 00:00:28]} 38. Rc8+
{[%clk 00:16:55]} {[%emt 00:01:09]} Kf7 {[%clk 00:33:26]} {[%emt 00:00:15]} 39.
Rc5 {[%clk 00:17:18]} {[%emt 00:00:08]} Ke6 {[%clk 00:31:52]} {[%emt 00:02:04]}
40. Kg1 {[%clk 00:17:21]} {[%emt 00:00:28]} Kd6 {[%clk 00:31:53]} {[%emt
00:00:28]} 41. Kh2 {[%clk 00:17:03]} {[%emt 00:00:49]} Qf1 {[%clk 00:28:33]}
{[%emt 00:03:48]} 42. Rf5 {[%clk 00:16:39]} {[%emt 00:00:55]} Ke6 {[%clk
00:28:47]} {[%emt 00:00:16]} 43. Rf4 {[%clk 00:15:46]} {[%emt 00:01:23]} Qd3
{[%clk 00:28:59]} {[%emt 00:00:18]} 0-1

[Event "6e festival d'échecs d'Allauch"]
[Site "Allauch, France"]
[Date "2024.08.27"]
[Round "3.2"]
[White "Degraeve, Remy"]
[Black "Charvein, Gabriel"]
[Result "1/2-1/2"]
[TimeControl "1 h 30 min (+30s/coup)"]
[WhiteElo "2402"]
[BlackElo "2011"]

1. e4 {[%clk 01:30:58]} {[%emt 02:30:41]} c5 {[%clk 01:25:51]} {[%emt
00:05:09]} 2. Nf3 {[%clk 01:31:21]} {[%emt 00:00:07]} d6 {[%clk 01:25:50]}
{[%emt 00:00:31]} 3. d4 {[%clk 01:31:45]} {[%emt 00:00:05]} cxd4 {[%clk
01:26:15]} {[%emt 00:00:06]} 4. Nxd4 {[%clk 01:32:12]} {[%emt 00:00:03]} Nf6
{[%clk 01:26:36]} {[%emt 00:00:09]} 5. Nc3 {[%clk 01:32:36]} {[%emt 00:00:05]}
g6 {[%clk 01:27:02]} {[%emt 00:00:05]} 6. Be3 {[%clk 01:33:02]} {[%emt
00:00:03]} Bg7 {[%clk 01:27:28]} {[%emt 00:00:04]} 7. f3 {[%clk 01:33:28]}
{[%emt 00:00:05]} O-O {[%clk 01:27:53]} {[%emt 00:00:05]} 8. Qd2 {[%clk
01:33:55]} {[%emt 00:00:02]} Nc6 {[%clk 01:28:18]} {[%emt 00:00:06]} 9. O-O-O
{[%clk 01:34:20]} {[%emt 00:00:05]} h5 {[%clk 01:28:46]} {[%emt 00:00:02]} 10.
Kb1 {[%clk 01:30:47]} {[%emt 00:04:03]} d5 {[%clk 01:28:37]} {[%emt 00:00:38]}
11. Nxc6 {[%clk 01:29:27]} {[%emt 00:01:50]} bxc6 {[%clk 01:29:01]} {[%emt
00:00:07]} 12. Bc4 {[%clk 01:29:33]} {[%emt 00:00:24]} Qc7 {[%clk 01:08:06]}
{[%emt 00:21:24]} 13. exd5 {[%clk 01:18:31]} {[%emt 00:11:33]} cxd5 {[%clk
01:08:29]} {[%emt 00:00:07]} 14. Bxd5 {[%clk 01:18:55]} {[%emt 00:00:07]} Nxd5
{[%clk 01:08:15]} {[%emt 00:00:43]} 15. Nxd5 {[%clk 01:19:20]} {[%emt
00:00:05]} Qb7 {[%clk 01:07:57]} {[%emt 00:00:48]} 16. Qb4 {[%clk 01:19:45]}
{[%emt 00:00:05]} Qxb4 {[%clk 01:07:47]} {[%emt 00:00:40]} 17. Nxb4 {[%clk
01:20:12]} {[%emt 00:00:02]} Rb8 {[%clk 01:07:49]} {[%emt 00:00:28]} 18. Nd3
{[%clk 01:14:43]} {[%emt 00:05:59]} Bf5 {[%clk 01:07:30]} {[%emt 00:00:50]} 19.
Bc1 {[%clk 01:13:39]} {[%emt 00:01:34]} Rfc8 {[%clk 01:03:17]} {[%emt
00:04:42]} 20. Rhe1 {[%clk 01:11:16]} {[%emt 00:02:53]} Rb7 {[%clk 01:03:32]}
{[%emt 00:00:15]} 21. b3 {[%clk 01:07:50]} {[%emt 00:03:57]} Rbc7 {[%clk
00:56:48]} {[%emt 00:07:14]} 22. Re2 {[%clk 01:08:15]} {[%emt 00:00:05]} e5
{[%clk 00:51:55]} {[%emt 00:05:23]} 23. h3 {[%clk 01:07:51]} {[%emt 00:00:54]}
h4 {[%clk 00:28:42]} {[%emt 00:23:42]} 24. Bg5 {[%clk 01:08:06]} {[%emt
00:00:15]} a5 {[%clk 00:28:53]} {[%emt 00:00:19]} 25. Bxh4 {[%clk 01:07:59]}
{[%emt 00:00:37]} a4 {[%clk 00:29:15]} {[%emt 00:00:07]} 26. b4 {[%clk
00:58:46]} {[%emt 00:09:43]} Rc4 {[%clk 00:24:32]} {[%emt 00:05:13]} 27. Be1
{[%clk 00:57:11]} {[%emt 00:02:06]} a3 {[%clk 00:21:46]} {[%emt 00:03:17]} 28.
g4 {[%clk 00:56:05]} {[%emt 00:01:36]} Be6 {[%clk 00:16:24]} {[%emt 00:05:51]}
29. c3 {[%clk 00:44:37]} {[%emt 00:11:58]} Rd8 {[%clk 00:05:00]} {[%emt
00:11:54]} 30. Nf2 {[%clk 00:41:37]} {[%emt 00:03:30]} Rxd1+ {[%clk 00:01:29]}
{[%emt 00:04:02]} 31. Nxd1 {[%clk 00:42:02]} {[%emt 00:00:04]} Rf4 {[%clk
00:01:53]} {[%emt 00:00:05]} 32. Re3 {[%clk 00:38:52]} {[%emt 00:03:40]} Bd5
{[%clk 00:01:54]} {[%emt 00:00:29]} 33. Kc2 {[%clk 00:34:34]} {[%emt 00:04:48]}
Bxf3 {[%clk 00:00:34]} {[%emt 00:01:51]} 34. Bg3 {[%clk 00:34:56]} {[%emt
00:00:08]} Be4+ {[%clk 00:00:42]} {[%emt 00:00:22]} 35. Kd2 {[%clk 00:30:44]}
{[%emt 00:04:42]} Rf3 {[%clk 00:00:58]} {[%emt 00:00:14]} 36. Rxe4 {[%clk
00:30:01]} {[%emt 00:01:13]} Rxg3 {[%clk 00:01:27]} {[%emt 00:00:01]} 37. b5
{[%clk 00:28:08]} {[%emt 00:02:23]} f5 {[%clk 00:01:56]} 38. Ra4 {[%clk
00:17:22]} {[%emt 00:11:16]} e4 {[%clk 00:01:48]} {[%emt 00:00:38]} 39. b6
{[%clk 00:17:35]} {[%emt 00:00:16]} Rg2+ {[%clk 00:01:46]} {[%emt 00:00:32]} 40.
Ke1 {[%clk 00:17:22]} {[%emt 00:00:42]} Rb2 {[%clk 00:01:41]} {[%emt 00:00:35]}
41. gxf5 {[%clk 00:15:28]} {[%emt 00:02:24]} gxf5 {[%clk 00:01:12]} {[%emt
00:00:59]} 42. Ra5 {[%clk 00:15:40]} {[%emt 00:00:17]} Rxb6 {[%clk 00:00:59]}
{[%emt 00:00:44]} 43. Rxf5 {[%clk 00:16:05]} {[%emt 00:00:04]} Rb1 {[%clk
00:01:01]} {[%emt 00:00:29]} 44. c4 {[%clk 00:03:22]} {[%emt 00:13:14]} Ra1
{[%clk 00:01:12]} {[%emt 00:00:19]} 45. Rb5 {[%clk 00:00:42]} {[%emt 00:03:10]}
Rxa2 {[%clk 00:01:06]} {[%emt 00:00:36]} 46. Ra5 {[%clk 00:01:07]} {[%emt
00:00:04]} Ra1 {[%clk 00:01:05]} {[%emt 00:00:31]} 47. Ke2 {[%clk 00:01:18]}
{[%emt 00:00:19]} a2 {[%clk 00:00:52]} {[%emt 00:00:43]} 48. c5 {[%clk
00:01:31]} {[%emt 00:00:17]} Rxd1 {[%clk 00:00:45]} {[%emt 00:00:37]} 49. Kxd1
{[%clk 00:01:56]} {[%emt 00:00:04]} a1=Q+ {[%clk 00:01:09]} {[%emt 00:00:07]}
50. Rxa1 {[%clk 00:02:24]} {[%emt 00:00:01]} Bxa1 {[%clk 00:01:30]} {[%emt
00:00:09]} 51. Ke2 {[%clk 00:02:52]} {[%emt 00:00:02]} Bd4 {[%clk 00:01:36]}
{[%emt 00:00:24]} 52. c6 {[%clk 00:03:20]} {[%emt 00:00:02]} Bb6 {[%clk
00:02:02]} {[%emt 00:00:05]} 53. c7 {[%clk 00:03:47]} {[%emt 00:00:02]} Bxc7
{[%clk 00:02:28]} {[%emt 00:00:04]} 54. Ke3 {[%clk 00:04:14]} {[%emt 00:00:02]}
Kh7 {[%clk 00:02:51]} {[%emt 00:00:08]} 55. Kxe4 {[%clk 00:04:42]} {[%emt
00:00:02]} Bd8 {[%clk 00:03:11]} 1/2-1/2